[Event "December 19 Early 2023"]
[Site "https://www.chess.com"]
[Date "2023.12.19"]
[Round "9"]
[White "Czerw, Dawid"]
[Black "Khodabandeh, Milad"]
[Result "1-0"]
[Board "116"]
[TimeControl "180+1"]
[WhiteFideId "1145746"]
[BlackFideId "12538620"]
[WhiteElo "2144"]
[BlackElo "1846"]
[WhiteTeam "POL"]
[BlackTeam "IRI"]
[WhiteClock "0:03:00"]
[BlackClock "0:00:18"]

1. e4 {[%clk 0:03:00]}  e5 {[%clk 0:02:59]} 2. Nf3 {[%clk 0:03:01]}  Nc6 {[%clk 0:02:59]} 3. Bb5 {[%clk 0:03:01]}  a6 {[%clk 0:02:59]} 4. Ba4 {[%clk 0:03:02]}  Nf6 {[%clk 0:02:59]} 5. d4 {[%clk 0:03:03]}  exd4 {[%clk 0:02:57]} 6. O-O {[%clk 0:03:03]}  Be7 {[%clk 0:02:53]} 7. e5 {[%clk 0:03:04]}  Ne4 {[%clk 0:02:53]} 8. Nxd4 {[%clk 0:03:04]}  Nc5 {[%clk 0:02:52]} 9. Nf5 {[%clk 0:03:04]}  O-O {[%clk 0:02:25]} 10. Qg4 {[%clk 0:03:04]}  g6 {[%clk 0:02:11]} 11. Bxc6 {[%clk 0:03:05]}  dxc6 {[%clk 0:02:10]} 12. Nxe7+ {[%clk 0:03:05]}  Qxe7 {[%clk 0:02:10]} 13. Qg3 {[%clk 0:03:06]}  Re8 {[%clk 0:01:57]} 14. Nc3 {[%clk 0:03:06]}  Bf5 {[%clk 0:01:48]} 15. Bf4 {[%clk 0:03:04]}  Ne6 {[%clk 0:01:39]} 16. Bh6 {[%clk 0:03:03]}  Nd4 {[%clk 0:01:31]} 17. f4 {[%clk 0:03:03]}  Nxc2 {[%clk 0:01:25]} 18. Bg5 {[%clk 0:03:03]}  Qc5+ {[%clk 0:01:20]} 19. Kh1 {[%clk 0:03:03]}  Nxa1 {[%clk 0:01:18]} 20. Rxa1 {[%clk 0:03:01]}  h5 {[%clk 0:01:07]} 21. Bf6 {[%clk 0:03:00]}  Rad8 {[%clk 0:00:47]} 22. Qg5 {[%clk 0:03:01]}  Rd2 {[%clk 0:00:18]} 23. Qh6 {[%clk 0:03:00]} 1-0

[Event "December 19 Early 2023"]
[Site "https://www.chess.com"]
[Date "2023.12.19"]
[Round "9"]
[White "Szyszylo, Rafal"]
[Black "Kuhn, Clement"]
[Result "1-0"]
[Board "123"]
[TimeControl "180+1"]
[WhiteFideId "1109626"]
[BlackFideId "36099775"]
[WhiteElo "1951"]
[BlackElo "2251"]
[WhiteTeam "POL"]
[BlackTeam "FRA"]
[WhiteClock "0:00:06"]
[BlackClock "0:00:00"]

1. e4 {[%clk 0:02:56]}  d5 {[%clk 0:02:53]} 2. exd5 {[%clk 0:02:55]}  Nf6 {[%clk 0:02:51]} 3. d4 {[%clk 0:02:53]}  Bg4 {[%clk 0:02:50]} 4. Be2 {[%clk 0:02:51]}  Bxe2 {[%clk 0:02:47]} 5. Qxe2 {[%clk 0:02:52]}  Qxd5 {[%clk 0:02:47]} 6. Nf3 {[%clk 0:02:52]}  Nc6 {[%clk 0:02:47]} 7. c3 {[%clk 0:02:52]}  O-O-O {[%clk 0:02:47]} 8. O-O {[%clk 0:02:51]}  e6 {[%clk 0:02:47]} 9. Bf4 {[%clk 0:02:38]}  Qf5 {[%clk 0:02:44]} 10. Bg3 {[%clk 0:02:37]}  g5 {[%clk 0:02:43]} 11. Nbd2 {[%clk 0:02:33]}  h5 {[%clk 0:02:42]} 12. Ne5 {[%clk 0:02:12]}  Nxe5 {[%clk 0:02:06]} 13. Qxe5 {[%clk 0:02:09]}  Qxe5 {[%clk 0:01:56]} 14. Bxe5 {[%clk 0:02:04]}  Rh6 {[%clk 0:01:52]} 15. f4 {[%clk 0:01:53]}  g4 {[%clk 0:01:30]} 16. f5 {[%clk 0:01:41]}  Nd7 {[%clk 0:01:19]} 17. Bf4 {[%clk 0:01:33]}  Rh7 {[%clk 0:01:11]} 18. fxe6 {[%clk 0:01:33]}  fxe6 {[%clk 0:01:12]} 19. Rae1 {[%clk 0:01:23]}  Re8 {[%clk 0:01:05]} 20. Ne4 {[%clk 0:01:21]}  Be7 {[%clk 0:00:45]} 21. Bg5 {[%clk 0:01:09]}  Bxg5 {[%clk 0:00:38]} 22. Nxg5 {[%clk 0:01:10]}  Rhe7 {[%clk 0:00:39]} 23. Nf7 {[%clk 0:00:57]}  e5 {[%clk 0:00:36]} 24. d5 {[%clk 0:00:53]}  e4 {[%clk 0:00:31]} 25. d6 {[%clk 0:00:53]}  Re6 {[%clk 0:00:31]} 26. dxc7 {[%clk 0:00:52]}  Kxc7 {[%clk 0:00:32]} 27. Ng5 {[%clk 0:00:49]}  Re5 {[%clk 0:00:31]} 28. Nf7 {[%clk 0:00:46]}  Rd5 {[%clk 0:00:31]} 29. Re2 {[%clk 0:00:42]}  Nc5 {[%clk 0:00:28]} 30. Nh6 {[%clk 0:00:38]}  Red8 {[%clk 0:00:22]} 31. Rf7+ {[%clk 0:00:29]}  R8d7 {[%clk 0:00:22]} 32. Rxd7+ {[%clk 0:00:27]}  Rxd7 {[%clk 0:00:23]} 33. Nf5 {[%clk 0:00:27]}  Rd1+ {[%clk 0:00:23]} 34. Kf2 {[%clk 0:00:25]}  Rh1 {[%clk 0:00:23]} 35. Kg3 {[%clk 0:00:20]}  Rf1 {[%clk 0:00:23]} 36. Ne3 {[%clk 0:00:19]}  Rb1 {[%clk 0:00:22]} 37. Kh4 {[%clk 0:00:17]}  Nd3 {[%clk 0:00:22]} 38. Kxh5 {[%clk 0:00:17]}  Nf4+ {[%clk 0:00:23]} 39. Kxg4 {[%clk 0:00:17]}  Nxe2 {[%clk 0:00:23]} 40. h4 {[%clk 0:00:15]}  Rh1 {[%clk 0:00:19]} 41. g3 {[%clk 0:00:14]}  Rg1 {[%clk 0:00:18]} 42. Nf5 {[%clk 0:00:14]}  e3 {[%clk 0:00:15]} 43. Kf3 {[%clk 0:00:14]}  Nxg3 {[%clk 0:00:15]} 44. Nxg3 {[%clk 0:00:14]}  e2 {[%clk 0:00:15]} 45. Nxe2 {[%clk 0:00:14]}  Rh1 {[%clk 0:00:15]} 46. Kg4 {[%clk 0:00:13]}  Kd6 {[%clk 0:00:15]} 47. h5 {[%clk 0:00:13]}  Ke5 {[%clk 0:00:14]} 48. Ng3 {[%clk 0:00:13]}  Rg1 {[%clk 0:00:14]} 49. c4 {[%clk 0:00:11]}  b6 {[%clk 0:00:12]} 50. b4 {[%clk 0:00:11]}  Rg2 {[%clk 0:00:12]} 51. a4 {[%clk 0:00:10]}  Ra2 {[%clk 0:00:12]} 52. c5 {[%clk 0:00:10]}  bxc5 {[%clk 0:00:12]} 53. bxc5 {[%clk 0:00:11]}  Rxa4+ {[%clk 0:00:12]} 54. Kg5 {[%clk 0:00:11]}  Ra3 {[%clk 0:00:12]} 55. Kg4 {[%clk 0:00:11]}  Ra1 {[%clk 0:00:12]} 56. h6 {[%clk 0:00:11]}  Ra6 {[%clk 0:00:12]} 57. Kg5 {[%clk 0:00:11]}  Ra3 {[%clk 0:00:12]} 58. Nh5 {[%clk 0:00:10]}  Ra1 {[%clk 0:00:06]} 59. h7 {[%clk 0:00:10]}  Rg1+ {[%clk 0:00:06]} 60. Kh6 {[%clk 0:00:10]}  Kd5 {[%clk 0:00:03]} 61. h8=Q {[%clk 0:00:10]}  Kxc5 {[%clk 0:00:04]} 62. Qc3+ {[%clk 0:00:07]}  Kb5 {[%clk 0:00:00]} 63. Qd3+ {[%clk 0:00:06]} 1-0

[Event "December 19 Early 2023"]
[Site "https://www.chess.com"]
[Date "2023.12.19"]
[Round "9"]
[White "Hoffmann, Asa"]
[Black "DeyanKostov"]
[Result "0-1"]
[Board "127"]
[TimeControl "180+1"]
[WhiteFideId "2001470"]
[WhiteElo "2117"]
[BlackElo "2465"]
[WhiteTeam "USA"]
[WhiteClock "0:00:17"]
[BlackClock "0:00:48"]

1. d4 {[%clk 0:02:39]}  d5 {[%clk 0:02:59]} 2. Bg5 {[%clk 0:02:35]}  c5 {[%clk 0:02:57]} 3. dxc5 {[%clk 0:02:33]}  Nc6 {[%clk 0:02:57]} 4. c3 {[%clk 0:02:33]}  f6 {[%clk 0:02:55]} 5. Bh4 {[%clk 0:02:32]}  e5 {[%clk 0:02:54]} 6. e4 {[%clk 0:02:31]}  dxe4 {[%clk 0:02:52]} 7. Qxd8+ {[%clk 0:02:30]}  Nxd8 {[%clk 0:02:50]} 8. Nd2 {[%clk 0:02:27]}  Bf5 {[%clk 0:02:50]} 9. Bb5+ {[%clk 0:02:25]}  Nc6 {[%clk 0:02:49]} 10. Ne2 {[%clk 0:02:23]}  Bxc5 {[%clk 0:02:48]} 11. Ng3 {[%clk 0:02:23]}  Be6 {[%clk 0:02:45]} 12. Ngxe4 {[%clk 0:02:22]}  Be7 {[%clk 0:02:46]} 13. O-O-O {[%clk 0:02:19]}  a6 {[%clk 0:02:40]} 14. Bxc6+ {[%clk 0:02:16]}  bxc6 {[%clk 0:02:41]} 15. f3 {[%clk 0:02:13]}  Nh6 {[%clk 0:02:37]} 16. b3 {[%clk 0:02:10]}  Kf7 {[%clk 0:02:35]} 17. Bf2 {[%clk 0:02:08]}  a5 {[%clk 0:02:29]} 18. a4 {[%clk 0:02:06]}  Rab8 {[%clk 0:02:26]} 19. Kc2 {[%clk 0:02:06]}  Nf5 {[%clk 0:02:16]} 20. g4 {[%clk 0:02:01]}  Nd6 {[%clk 0:02:10]} 21. c4 {[%clk 0:01:53]}  Nb7 {[%clk 0:02:00]} 22. h4 {[%clk 0:01:42]}  Rhd8 {[%clk 0:01:55]} 23. h5 {[%clk 0:01:39]}  h6 {[%clk 0:01:54]} 24. Be3 {[%clk 0:01:32]}  Bb4 {[%clk 0:01:50]} 25. f4 {[%clk 0:01:29]}  exf4 {[%clk 0:01:48]} 26. Bxf4 {[%clk 0:01:28]}  Rbc8 {[%clk 0:01:47]} 27. Rhg1 {[%clk 0:01:23]}  Nd6 {[%clk 0:01:41]} 28. Nxd6+ {[%clk 0:01:21]}  Bxd6 {[%clk 0:01:42]} 29. Bxd6 {[%clk 0:01:20]}  Rxd6 {[%clk 0:01:43]} 30. Ne4 {[%clk 0:01:19]}  Rxd1 {[%clk 0:01:43]} 31. Kxd1 {[%clk 0:01:19]}  Rd8+ {[%clk 0:01:41]} 32. Kc2 {[%clk 0:01:19]}  Rd4 {[%clk 0:01:41]} 33. Nf2 {[%clk 0:01:12]}  c5 {[%clk 0:01:38]} 34. Rg3 {[%clk 0:01:02]}  Ke7 {[%clk 0:01:32]} 35. Kc3 {[%clk 0:01:01]}  Kd6 {[%clk 0:01:28]} 36. Rd3 {[%clk 0:00:56]}  Rxd3+ {[%clk 0:01:28]} 37. Kxd3 {[%clk 0:00:56]}  f5 {[%clk 0:01:21]} 38. gxf5 {[%clk 0:00:53]}  Bxf5+ {[%clk 0:01:22]} 39. Kd2 {[%clk 0:00:48]}  Ke5 {[%clk 0:01:18]} 40. Nd1 {[%clk 0:00:46]}  Bg4 {[%clk 0:01:14]} 41. Nb2 {[%clk 0:00:44]}  Bxh5 {[%clk 0:01:14]} 42. Nd3+ {[%clk 0:00:44]}  Kd4 {[%clk 0:01:12]} 43. Nf4 {[%clk 0:00:43]}  Bf7 {[%clk 0:01:11]} 44. Ne2+ {[%clk 0:00:40]}  Ke5 {[%clk 0:01:10]} 45. Nc3 {[%clk 0:00:38]}  h5 {[%clk 0:01:08]} 46. Ke3 {[%clk 0:00:38]}  h4 {[%clk 0:01:08]} 47. Kf3 {[%clk 0:00:38]}  g5 {[%clk 0:01:00]} 48. Nb5 {[%clk 0:00:35]}  Be6 {[%clk 0:00:56]} 49. Nc7 {[%clk 0:00:33]}  g4+ {[%clk 0:00:56]} 50. Kg2 {[%clk 0:00:33]}  Bf5 {[%clk 0:00:55]} 51. Na6 {[%clk 0:00:29]}  Kd4 {[%clk 0:00:53]} 52. Kh2 {[%clk 0:00:17]}  Bc2 {[%clk 0:00:48]} 0-1

[Event "December 19 Early 2023"]
[Site "https://www.chess.com"]
[Date "2023.12.19"]
[Round "9"]
[White "Mohammadi, Melika"]
[Black "Nery Junior, Jose Antonio"]
[Result "1-0"]
[Board "128"]
[TimeControl "180+1"]
[WhiteFideId "42529271"]
[BlackFideId "2104822"]
[WhiteElo "1901"]
[BlackElo "2197"]
[WhiteTeam "IRI"]
[BlackTeam "BRA"]
[WhiteClock "0:00:10"]
[BlackClock "0:00:09"]

1. e4 {[%clk 0:03:00]}  c5 {[%clk 0:02:55]} 2. Nf3 {[%clk 0:03:01]}  d6 {[%clk 0:02:56]} 3. d4 {[%clk 0:03:01]}  cxd4 {[%clk 0:02:56]} 4. Nxd4 {[%clk 0:03:01]}  Nf6 {[%clk 0:02:57]} 5. Nc3 {[%clk 0:03:02]}  a6 {[%clk 0:02:58]} 6. f3 {[%clk 0:03:03]}  e6 {[%clk 0:02:57]} 7. Be3 {[%clk 0:02:55]}  b5 {[%clk 0:02:55]} 8. Qd2 {[%clk 0:02:53]}  Nbd7 {[%clk 0:02:56]} 9. g4 {[%clk 0:02:49]}  Nb6 {[%clk 0:02:56]} 10. g5 {[%clk 0:02:47]}  Nfd7 {[%clk 0:02:56]} 11. f4 {[%clk 0:02:43]}  Bb7 {[%clk 0:02:46]} 12. a3 {[%clk 0:02:38]}  Rc8 {[%clk 0:02:36]} 13. Bd3 {[%clk 0:02:31]}  Nc5 {[%clk 0:02:34]} 14. Rf1 {[%clk 0:02:17]}  Nc4 {[%clk 0:02:31]} 15. Bxc4 {[%clk 0:02:16]}  bxc4 {[%clk 0:02:32]} 16. Qg2 {[%clk 0:01:58]}  Qa5 {[%clk 0:02:25]} 17. O-O-O {[%clk 0:01:54]}  Rb8 {[%clk 0:02:10]} 18. f5 {[%clk 0:01:44]}  e5 {[%clk 0:02:10]} 19. Nde2 {[%clk 0:01:42]}  Bc6 {[%clk 0:01:57]} 20. Nd5 {[%clk 0:00:51]}  Na4 {[%clk 0:01:34]} 21. Bd2 {[%clk 0:00:40]}  Qd8 {[%clk 0:01:14]} 22. Nb4 {[%clk 0:00:23]}  Qb6 {[%clk 0:01:02]} 23. Bc3 {[%clk 0:00:10]}  Nxc3 {[%clk 0:01:00]} 24. Nxc3 {[%clk 0:00:09]}  h6 {[%clk 0:00:42]} 25. Nxc6 {[%clk 0:00:08]}  Qxc6 {[%clk 0:00:39]} 26. Nd5 {[%clk 0:00:08]}  c3 {[%clk 0:00:29]} 27. Nxc3 {[%clk 0:00:06]}  hxg5 {[%clk 0:00:29]} 28. Nd5 {[%clk 0:00:03]}  Qb7 {[%clk 0:00:18]} 29. b3 {[%clk 0:00:04]}  Be7 {[%clk 0:00:16]} 30. Qd2 {[%clk 0:00:03]}  g4 {[%clk 0:00:11]} 31. Nxe7 {[%clk 0:00:03]}  Qxe7 {[%clk 0:00:10]} 32. Rf2 {[%clk 0:00:03]}  Rd8 {[%clk 0:00:08]} 33. Rg2 {[%clk 0:00:04]}  Rh4 {[%clk 0:00:07]} 34. Qf2 {[%clk 0:00:03]}  Qg5+ {[%clk 0:00:07]} 35. Kb1 {[%clk 0:00:03]}  Ke7 {[%clk 0:00:07]} 36. Rdg1 {[%clk 0:00:03]}  Rdh8 {[%clk 0:00:05]} 37. Qe2 {[%clk 0:00:04]}  Qf4 {[%clk 0:00:05]} 38. Rxg4 {[%clk 0:00:03]}  Rxg4 {[%clk 0:00:05]} 39. Rxg4 {[%clk 0:00:04]}  Rxh2 {[%clk 0:00:05]} 40. Rxf4 {[%clk 0:00:02]}  Rxe2 {[%clk 0:00:04]} 41. Rg4 {[%clk 0:00:03]}  Rxe4 {[%clk 0:00:04]} 42. Rxe4 {[%clk 0:00:02]}  Kf6 {[%clk 0:00:04]} 43. Ra4 {[%clk 0:00:03]}  Kxf5 {[%clk 0:00:04]} 44. Rxa6 {[%clk 0:00:04]}  d5 {[%clk 0:00:05]} 45. Rd6 {[%clk 0:00:04]}  d4 {[%clk 0:00:05]} 46. a4 {[%clk 0:00:04]}  f6 {[%clk 0:00:06]} 47. a5 {[%clk 0:00:05]}  g5 {[%clk 0:00:07]} 48. a6 {[%clk 0:00:05]}  g4 {[%clk 0:00:08]} 49. Rd8 {[%clk 0:00:05]}  g3 {[%clk 0:00:08]} 50. Rg8 {[%clk 0:00:06]}  Kf4 {[%clk 0:00:09]} 51. a7 {[%clk 0:00:06]}  e4 {[%clk 0:00:09]} 52. a8=Q {[%clk 0:00:06]}  f5 {[%clk 0:00:10]} 53. Qb8+ {[%clk 0:00:06]}  Ke3 {[%clk 0:00:09]} 54. Qxg3+ {[%clk 0:00:07]}  Ke2 {[%clk 0:00:09]} 55. Qg2+ {[%clk 0:00:07]}  Ke3 {[%clk 0:00:09]} 56. Rg3+ {[%clk 0:00:07]}  Kf4 {[%clk 0:00:09]} 57. Qf2+ {[%clk 0:00:08]}  Ke5 {[%clk 0:00:10]} 58. Rg5 {[%clk 0:00:08]}  e3 {[%clk 0:00:09]} 59. Qxf5+ {[%clk 0:00:08]}  Kd6 {[%clk 0:00:10]} 60. Rg6+ {[%clk 0:00:08]}  Ke7 {[%clk 0:00:09]} 61. Qf6+ {[%clk 0:00:09]}  Kd7 {[%clk 0:00:09]} 62. Qf7+ {[%clk 0:00:09]}  Kd8 {[%clk 0:00:09]} 63. Rg8# {[%clk 0:00:10]} 1-0

[Event "December 19 Early 2023"]
[Site "https://www.chess.com"]
[Date "2023.12.19"]
[Round "9"]
[White "Martin Barcelo, Carles"]
[Black "Herman, Daniel"]
[Result "1-0"]
[Board "130"]
[TimeControl "180+1"]
[WhiteFideId "24561444"]
[BlackFideId "30935008"]
[WhiteElo "2135"]
[BlackElo "1897"]
[WhiteTeam "ESP"]
[BlackTeam "USA"]
[WhiteClock "0:00:06"]
[BlackClock "0:00:00"]

1. e4 {[%clk 0:02:59]}  d6 {[%clk 0:02:58]} 2. d4 {[%clk 0:02:55]}  Nf6 {[%clk 0:02:58]} 3. Bd3 {[%clk 0:02:55]}  e5 {[%clk 0:02:58]} 4. c3 {[%clk 0:02:49]}  Nc6 {[%clk 0:02:58]} 5. Nf3 {[%clk 0:02:42]}  Be7 {[%clk 0:02:53]} 6. h3 {[%clk 0:02:41]}  O-O {[%clk 0:02:53]} 7. O-O {[%clk 0:02:42]}  Re8 {[%clk 0:02:47]} 8. Re1 {[%clk 0:02:42]}  Bf8 {[%clk 0:02:46]} 9. Nbd2 {[%clk 0:02:34]}  g6 {[%clk 0:02:43]} 10. Nf1 {[%clk 0:02:31]}  Bg7 {[%clk 0:02:43]} 11. Ng3 {[%clk 0:02:31]}  d5 {[%clk 0:02:30]} 12. exd5 {[%clk 0:01:48]}  Nxd5 {[%clk 0:02:29]} 13. dxe5 {[%clk 0:01:39]}  Nxe5 {[%clk 0:02:28]} 14. Nxe5 {[%clk 0:01:38]}  Rxe5 {[%clk 0:02:09]} 15. Rxe5 {[%clk 0:01:37]}  Bxe5 {[%clk 0:02:10]} 16. Bh6 {[%clk 0:01:37]}  Be6 {[%clk 0:02:02]} 17. Be4 {[%clk 0:01:34]}  c6 {[%clk 0:01:51]} 18. Qd2 {[%clk 0:01:30]}  Qc7 {[%clk 0:01:47]} 19. Ne2 {[%clk 0:00:49]}  Rd8 {[%clk 0:01:33]} 20. Rd1 {[%clk 0:00:49]}  Bf6 {[%clk 0:01:32]} 21. Qc2 {[%clk 0:00:32]}  Nb6 {[%clk 0:01:23]} 22. Rxd8+ {[%clk 0:00:27]}  Qxd8 {[%clk 0:01:24]} 23. b3 {[%clk 0:00:27]}  Nd7 {[%clk 0:01:08]} 24. Qd3 {[%clk 0:00:26]}  Nc5 {[%clk 0:01:01]} 25. Qxd8+ {[%clk 0:00:25]}  Bxd8 {[%clk 0:01:02]} 26. Bc2 {[%clk 0:00:24]}  Bf6 {[%clk 0:00:59]} 27. Be3 {[%clk 0:00:24]}  b6 {[%clk 0:00:55]} 28. Nd4 {[%clk 0:00:23]}  Bd7 {[%clk 0:00:51]} 29. c4 {[%clk 0:00:15]}  Kf8 {[%clk 0:00:36]} 30. Kf1 {[%clk 0:00:15]}  Ke7 {[%clk 0:00:35]} 31. Ke2 {[%clk 0:00:15]}  Ne6 {[%clk 0:00:32]} 32. Nxe6 {[%clk 0:00:15]}  Kxe6 {[%clk 0:00:32]} 33. Be4 {[%clk 0:00:15]}  Kd6 {[%clk 0:00:26]} 34. f4 {[%clk 0:00:10]}  Bg7 {[%clk 0:00:24]} 35. g4 {[%clk 0:00:10]}  f5 {[%clk 0:00:22]} 36. Bf3 {[%clk 0:00:11]}  Be6 {[%clk 0:00:20]} 37. Kd3 {[%clk 0:00:10]}  Bf6 {[%clk 0:00:20]} 38. Be2 {[%clk 0:00:07]}  fxg4 {[%clk 0:00:18]} 39. hxg4 {[%clk 0:00:08]}  c5 {[%clk 0:00:18]} 40. Bf3 {[%clk 0:00:08]}  Bf7 {[%clk 0:00:18]} 41. f5 {[%clk 0:00:08]}  gxf5 {[%clk 0:00:17]} 42. gxf5 {[%clk 0:00:09]}  h5 {[%clk 0:00:17]} 43. Bf4+ {[%clk 0:00:07]}  Be5 {[%clk 0:00:17]} 44. Bg5 {[%clk 0:00:08]}  a5 {[%clk 0:00:14]} 45. Ke4 {[%clk 0:00:08]}  Bg3 {[%clk 0:00:13]} 46. Bf4+ {[%clk 0:00:08]}  Bxf4 {[%clk 0:00:13]} 47. Kxf4 {[%clk 0:00:09]}  a4 {[%clk 0:00:12]} 48. Kg5 {[%clk 0:00:09]}  axb3 {[%clk 0:00:12]} 49. axb3 {[%clk 0:00:10]}  b5 {[%clk 0:00:13]} 50. Bxh5 {[%clk 0:00:09]}  Bg8 {[%clk 0:00:12]} 51. Be2 {[%clk 0:00:07]}  bxc4 {[%clk 0:00:11]} 52. Bxc4 {[%clk 0:00:07]}  Bh7 {[%clk 0:00:00]} 53. Kf6 {[%clk 0:00:06]} 1-0

[Event "December 19 Early 2023"]
[Site "https://www.chess.com"]
[Date "2023.12.19"]
[Round "9"]
[White "Recuero Guerra, Javier"]
[Black "Novak, Ratko"]
[Result "0-1"]
[Board "131"]
[TimeControl "180+1"]
[WhiteFideId "2254085"]
[BlackFideId "14511827"]
[WhiteElo "2208"]
[BlackElo "2036"]
[WhiteTeam "ESP"]
[BlackTeam "CRO"]
[WhiteClock "0:00:00"]
[BlackClock "0:01:27"]

1. e4 {[%clk 0:03:00]}  d5 {[%clk 0:02:59]} 2. exd5 {[%clk 0:02:58]}  c6 {[%clk 0:02:59]} 3. d4 {[%clk 0:02:56]}  cxd5 {[%clk 0:02:59]} 4. Bd3 {[%clk 0:02:56]}  Nc6 {[%clk 0:02:59]} 5. c3 {[%clk 0:02:56]}  g6 {[%clk 0:02:59]} 6. Qc2 {[%clk 0:02:55]}  f6 {[%clk 0:02:58]} 7. f4 {[%clk 0:01:59]}  e5 {[%clk 0:02:53]} 8. fxe5 {[%clk 0:01:55]}  fxe5 {[%clk 0:02:53]} 9. dxe5 {[%clk 0:01:51]}  Nxe5 {[%clk 0:02:53]} 10. Qe2 {[%clk 0:01:42]}  Qe7 {[%clk 0:02:51]} 11. Bb5+ {[%clk 0:01:32]}  Bd7 {[%clk 0:02:51]} 12. Bxd7+ {[%clk 0:01:32]}  Nxd7 {[%clk 0:02:51]} 13. Qxe7+ {[%clk 0:01:30]}  Bxe7 {[%clk 0:02:50]} 14. Nf3 {[%clk 0:01:30]}  Bc5 {[%clk 0:02:50]} 15. Nbd2 {[%clk 0:01:26]}  O-O-O {[%clk 0:02:47]} 16. Nb3 {[%clk 0:01:21]}  Re8+ {[%clk 0:02:46]} 17. Kd1 {[%clk 0:01:20]}  Ngf6 {[%clk 0:02:43]} 18. Nbd4 {[%clk 0:01:13]}  Ne4 {[%clk 0:02:41]} 19. Rf1 {[%clk 0:01:11]}  Rhf8 {[%clk 0:02:40]} 20. Be3 {[%clk 0:00:50]}  Ne5 {[%clk 0:02:38]} 21. Kc2 {[%clk 0:00:40]}  Nc4 {[%clk 0:02:30]} 22. Bg1 {[%clk 0:00:35]}  a6 {[%clk 0:02:26]} 23. b3 {[%clk 0:00:33]}  Na3+ {[%clk 0:02:24]} 24. Kb2 {[%clk 0:00:31]}  Nb5 {[%clk 0:02:24]} 25. Nxb5 {[%clk 0:00:19]}  axb5 {[%clk 0:02:13]} 26. Bxc5 {[%clk 0:00:18]}  Nxc5 {[%clk 0:02:12]} 27. Rad1 {[%clk 0:00:09]}  Re2+ {[%clk 0:02:11]} 28. Rd2 {[%clk 0:00:08]}  Re3 {[%clk 0:02:01]} 29. Kc2 {[%clk 0:00:07]}  Ne4 {[%clk 0:01:59]} 30. Rd3 {[%clk 0:00:04]}  Re2+ {[%clk 0:01:57]} 31. Kd1 {[%clk 0:00:03]}  Rxg2 {[%clk 0:01:48]} 32. Kc1 {[%clk 0:00:02]}  Rxa2 {[%clk 0:01:47]} 33. Kb1 {[%clk 0:00:03]}  Rg2 {[%clk 0:01:40]} 34. Kc1 {[%clk 0:00:03]}  g5 {[%clk 0:01:36]} 35. Rxd5 {[%clk 0:00:02]}  g4 {[%clk 0:01:28]} 36. Nd2 {[%clk 0:00:01]}  Rxf1+ {[%clk 0:01:28]} 37. Nxf1 {[%clk 0:00:01]}  Rg1 {[%clk 0:01:28]} 38. Rf5 {[%clk 0:00:02]}  Nxc3 {[%clk 0:01:27]} 39. Rf4 {[%clk 0:00:00]}  Ne2+ {[%clk 0:01:27]} 0-1

[Event "December 19 Early 2023"]
[Site "https://www.chess.com"]
[Date "2023.12.19"]
[Round "9"]
[White "Marinakis, Hristos"]
[Black "Ovezdurdyyeva, Jemal"]
[Result "1-0"]
[Board "137"]
[TimeControl "180+1"]
[WhiteFideId "4294661"]
[BlackFideId "14001888"]
[WhiteElo "2306"]
[BlackElo "2086"]
[WhiteTeam "GRE"]
[BlackTeam "TKM"]
[WhiteClock "0:00:34"]
[BlackClock "0:00:19"]

1. e4 {[%clk 0:02:52]}  d6 {[%clk 0:02:59]} 2. Nf3 {[%clk 0:02:51]}  Nf6 {[%clk 0:02:59]} 3. Nc3 {[%clk 0:02:50]}  c6 {[%clk 0:02:59]} 4. h3 {[%clk 0:02:49]}  g6 {[%clk 0:02:58]} 5. d4 {[%clk 0:02:49]}  b5 {[%clk 0:02:57]} 6. a3 {[%clk 0:02:47]}  Bg7 {[%clk 0:02:56]} 7. Bd3 {[%clk 0:02:44]}  O-O {[%clk 0:02:55]} 8. O-O {[%clk 0:02:44]}  Nbd7 {[%clk 0:02:55]} 9. Bf4 {[%clk 0:02:41]}  a6 {[%clk 0:02:27]} 10. Qe2 {[%clk 0:02:36]}  Nb6 {[%clk 0:02:15]} 11. Rad1 {[%clk 0:02:27]}  Nfd7 {[%clk 0:02:05]} 12. e5 {[%clk 0:02:20]}  dxe5 {[%clk 0:02:01]} 13. dxe5 {[%clk 0:02:20]}  e6 {[%clk 0:01:58]} 14. Ne4 {[%clk 0:02:11]}  c5 {[%clk 0:01:52]} 15. Bg5 {[%clk 0:01:56]}  Qc7 {[%clk 0:01:36]} 16. Nf6+ {[%clk 0:01:39]}  Kh8 {[%clk 0:01:10]} 17. c3 {[%clk 0:01:23]}  h6 {[%clk 0:01:05]} 18. Nxd7 {[%clk 0:01:12]}  Nxd7 {[%clk 0:01:03]} 19. Bf4 {[%clk 0:01:10]}  Bb7 {[%clk 0:01:03]} 20. Qe3 {[%clk 0:01:08]}  Bxf3 {[%clk 0:00:57]} 21. Qxf3 {[%clk 0:01:09]}  Bxe5 {[%clk 0:00:58]} 22. Bxh6 {[%clk 0:01:06]}  Bg7 {[%clk 0:00:58]} 23. Bf4 {[%clk 0:01:02]}  e5 {[%clk 0:00:53]} 24. Bc1 {[%clk 0:00:50]}  Rae8 {[%clk 0:00:52]} 25. Bb1 {[%clk 0:00:44]}  Nb6 {[%clk 0:00:44]} 26. Rfe1 {[%clk 0:00:40]}  f5 {[%clk 0:00:42]} 27. Qg3 {[%clk 0:00:38]}  Qf7 {[%clk 0:00:32]} 28. Rd6 {[%clk 0:00:36]}  Re6 {[%clk 0:00:28]} 29. Red1 {[%clk 0:00:36]}  Nc4 {[%clk 0:00:27]} 30. Rd7 {[%clk 0:00:35]}  Re7 {[%clk 0:00:26]} 31. Qh4+ {[%clk 0:00:35]}  Kg8 {[%clk 0:00:19]} 32. Rxe7 {[%clk 0:00:34]} 1-0

[Event "December 19 Early 2023"]
[Site "https://www.chess.com"]
[Date "2023.12.19"]
[Round "9"]
[White "Petrukhina, Olga"]
[Black "Wael Sabry, Mina"]
[Result "1-0"]
[Board "139"]
[TimeControl "180+1"]
[WhiteFideId "13703935"]
[BlackFideId "10670173"]
[WhiteElo "1991"]
[BlackElo "1861"]
[WhiteTeam "KAZ"]
[BlackTeam "EGY"]
[WhiteClock "0:00:17"]
[BlackClock "0:01:12"]

1. d4 {[%clk 0:02:50]}  Nf6 {[%clk 0:02:59]} 2. c4 {[%clk 0:02:47]}  g6 {[%clk 0:02:59]} 3. Nc3 {[%clk 0:02:47]}  Bg7 {[%clk 0:02:59]} 4. Nf3 {[%clk 0:02:47]}  d6 {[%clk 0:03:00]} 5. Bg5 {[%clk 0:02:47]}  O-O {[%clk 0:03:00]} 6. e3 {[%clk 0:02:47]}  c5 {[%clk 0:02:56]} 7. d5 {[%clk 0:02:46]}  a6 {[%clk 0:02:55]} 8. a4 {[%clk 0:02:46]}  Nbd7 {[%clk 0:02:49]} 9. Be2 {[%clk 0:02:45]}  Rb8 {[%clk 0:02:49]} 10. O-O {[%clk 0:02:42]}  Nb6 {[%clk 0:02:48]} 11. Qc2 {[%clk 0:02:28]}  h6 {[%clk 0:02:45]} 12. Bh4 {[%clk 0:02:27]}  Na8 {[%clk 0:02:44]} 13. e4 {[%clk 0:02:16]}  Nc7 {[%clk 0:02:43]} 14. h3 {[%clk 0:02:03]}  e5 {[%clk 0:02:40]} 15. dxe6 {[%clk 0:01:58]}  Nxe6 {[%clk 0:02:39]} 16. Rfd1 {[%clk 0:01:48]}  Qe7 {[%clk 0:02:16]} 17. Nd5 {[%clk 0:01:41]}  Qd8 {[%clk 0:02:14]} 18. e5 {[%clk 0:01:19]}  dxe5 {[%clk 0:02:09]} 19. Nxf6+ {[%clk 0:01:14]}  Qxf6 {[%clk 0:02:09]} 20. Bxf6 {[%clk 0:01:13]}  Bxf6 {[%clk 0:02:10]} 21. Bd3 {[%clk 0:01:04]}  Nf4 {[%clk 0:02:06]} 22. Be4 {[%clk 0:01:01]}  Bg7 {[%clk 0:02:05]} 23. Bd5 {[%clk 0:01:00]}  Kh7 {[%clk 0:02:04]} 24. Re1 {[%clk 0:00:59]}  Nxd5 {[%clk 0:01:55]} 25. cxd5 {[%clk 0:00:58]}  Bf5 {[%clk 0:01:52]} 26. Qxc5 {[%clk 0:00:57]}  Rfe8 {[%clk 0:01:43]} 27. d6 {[%clk 0:00:53]}  e4 {[%clk 0:01:32]} 28. Nd4 {[%clk 0:00:38]}  Bd7 {[%clk 0:01:28]} 29. Qb4 {[%clk 0:00:27]}  b5 {[%clk 0:01:22]} 30. axb5 {[%clk 0:00:26]}  Bxb5 {[%clk 0:01:22]} 31. Nxb5 {[%clk 0:00:25]}  Rxb5 {[%clk 0:01:22]} 32. Qa4 {[%clk 0:00:24]}  Re6 {[%clk 0:01:18]} 33. d7 {[%clk 0:00:20]}  Rd6 {[%clk 0:01:17]} 34. Red1 {[%clk 0:00:18]}  Rbd5 {[%clk 0:01:14]} 35. Rxd5 {[%clk 0:00:17]}  Rxd5 {[%clk 0:01:12]} 36. Rd1 {[%clk 0:00:17]} 1-0